{"text_format":"1","workbook":"xlsx","n_sheets":20,"sheets":["Captain","Nats Fri Coub v A&T","Nats Fri Nagatos","Nats Fri K v S rd2","Nats Fri Syd v Is","Nats Fri 1","Nats Thur Campaign","Nats Thur 1","Nats Wed Cruiser","Nats Wed CS v IM","Nats Wed CS v LM","Nats Wed KP v carl","Nats Wed Arena v courbet","Nats Wed KP v SA","Nats Wed 1","Nats Tues Campaign","Nats Tues 1","Nats Mon 2","Nats Mon 1","Composite"],"not_rendered":{"charts":0,"images":24,"macros":1,"external_links":0,"defined_names":26,"comments":0,"pivot_tables":0},"unopened":[],"bounds":{"document_bytes":16777216,"sheet_cells":100000,"rows_first":2000,"rows_last":500,"rows_between":2000,"halvings":0,"cell_chars":16384,"cell_head_chars":4096},"cells_cut":0,"cells_raw":0,"read":"whole","date_system":"1900"}

{"sheet":"Captain","index":0,"n_rows":46,"n_cols":8,"rows_kept":46,"cut":false,"hidden":false,"merged":[]}
["Captian","Ship","Class","Units",null,null,null,"Enter \"Convoy\" for campaign battles"]
["Andy Terpstra","Kongo",4,4.5]
["Bob Hoernemann","Kongo",4,4.5]
["Brandon Smith","Caio Duilio",4,4.5]
["Brian Lamb","Lutzow",3,3.5]
["Carl Bitondo","Deutschland",3,3.5]
["Carl Camurati","Nelson",6,6]
["Charley Stephens","Seydlitz",4,4.5]
["Chris Pearce","Seydlitz",4,4.5]
["Craig Singer","Nagato",6,6]
["Eric Bitondo","Deutschland",3,3.5]
["Gerald Roberts","Kongo",4,4.5]
["Jeff Lide","Rodney",6,6]
["Kas Gaigalas","Washington",6,6]
["Ken Arena","Iron Duke",5,5]
["Kevin Plumer","Courbet",4,4.5]
["Lee McKinzie","North Carolina",6,6]
["Lou Meszaros","Courbet",4,4.5]
["Mark Lide","Nagato",6,6]
["Marty Hayes","South Carolina",4,4]
["Nathan Graham","West Virginia",5,5.5]
["Philip Pace","Gearing",1,1.5]
["Randy Stiponovich","Glorie",2,2.5]
["Richard Whitsell","Jamaica",2,2.5]
["Robert Arena","Arizona",5,5.5]
["Robert Stalnaker","Revenge",5,5.5]
["Steve Andrews","Courbet",4,4.5]
["Thomas Tanner","Ostfriesland",4,4.5]
["Tom Palmer","Warspite",5,5.5]
["Tyler Helland","Nagato",6,6]
["William Tustin","Jean Bart",6,6.5]
["David Haynes","Kongo",4,4.5]
["Sydnee McKinzie","Iron Duke",5,5]
["Isaac McKinzie","Radetzky",3,3.5]
["John Jones","Gearing",1,1.5]
["Mark Kuntz","Nassau",4,4]
["Cameron Hunt","Convoy",0,0]
[null,"Des Moines",3,3.5]
[null,"Suffren",3,3]
[null,"Baden",5,5.5]
[null,"Shimakaze",1,1.5]
[null,"Torville",3,3]
[null,"Luigi Cardona",2,2]
[null,"Connecticut",3,3.5]
[null,"Duca",2,2.5]
[null,"Agano",2,2.5]

{"sheet":"Nats Fri Coub v A&T","index":1,"n_rows":10,"n_cols":20,"rows_kept":10,"cut":false,"hidden":false,"merged":[]}
[null,null,null,null,null,null,null,null,"Winner:",{"$f":"IF(K2>K3, B2, IF(K3>K2, B3, \"Tie\"))","v":"Allied"},null,"Battle Type","Battle Location and Month (i.e. MD May)","Nats",null,null,null,null,"Fleet"]
["Fleet 1 :","Allied",null,"Fleet Units:",13.5,"Fleet Weight:",24,"Fleet Battle Damage:",2370,"Fleet Score:",6930,null,"Battle Day","Fri",null,null,null,null,"Mini-Fleet"]
["Fleet 2 :","Axis",null,"Fleet Units:",15,"Fleet Weight:",26,"Fleet Battle Damage:",6930,"Fleet Score:",2370,null,"Battle Number","Coub v A&T",null,null,null,null,"Individual"]
["Captian","Ship","Fleet","Class","Units","Above","On","Below","Sinks","Participate all Sorties","Penalties Points","2nd Sortie Sink","Damage Points","Scored By","Notes","Weight Factor","Weight Points","Captian","Captain Points","Indiv Points"]
["Lou Meszaros","Courbet","Allied",4,4.5,25,4,3,0,1,0,0,420,"Tom","None,None,None",8,2310,"Lou Meszaros",2310,1520]
["Steve Andrews","Courbet","Allied",4,4.5,21,7,7,0,1,0,0,560,"Tom","None,None,None",8,2310,"Steve Andrews",2310,1520]
["Kevin Plumer","Courbet","Allied",4,4.5,41,4,30,0,1,0,0,1390,"Rob","None,None,None",8,2310,"Kevin Plumer",2310,1520]
["Ken Arena","Iron Duke","Axis",5,5,57,7,23,0,1,0,0,1400,"Steve","None,None,None",9,820.38461538461536,"Ken Arena",820.38461538461536,0]
["Robert Arena","Arizona","Axis",5,5.5,115,8,55,1,1,0,1,3860,"Kevin","None,None,None",9,820.38461538461536,"Robert Arena",620.38461538461536,0]
["Thomas Tanner","Ostfriesland","Axis",4,4.5,39,4,40,0,1,0,0,1670,"Kevin","None,None,None",8,729.23076923076928,"Thomas Tanner",729.23076923076928,0]

{"sheet":"Nats Fri Nagatos","index":2,"n_rows":6,"n_cols":20,"rows_kept":6,"cut":false,"hidden":false,"merged":[]}
[null,null,null,null,null,null,null,null,"Winner:",{"$f":"IF(K2>K3, B2, IF(K3>K2, B3, \"Tie\"))","v":"Mark"},null,"Battle Type","Battle Location and Month (i.e. MD May)","Nats",null,null,null,null,"Fleet"]
["Fleet 1 :","Tyler",null,"Fleet Units:",6,"Fleet Weight:",10,"Fleet Battle Damage:",1150,"Fleet Score:",920,null,"Battle Day","Fri",null,null,null,null,"Mini-Fleet"]
["Fleet 2 :","Mark",null,"Fleet Units:",6,"Fleet Weight:",10,"Fleet Battle Damage:",920,"Fleet Score:",1150,null,"Battle Number","Nagatos",null,null,null,null,"Individual"]
["Captian","Ship","Fleet","Class","Units","Above","On","Below","Sinks","Participate all Sorties","Penalties Points","2nd Sortie Sink","Damage Points","Scored By","Notes","Weight Factor","Weight Points","Captian","Captain Points","Indiv Points"]
["Mark Lide","Nagato","Mark",6,6,31,2,19,0,1,0,0,920,"Tyler","None,None,None",10,1150,"Mark Lide",1150,230]
["Tyler Helland","Nagato","Tyler",6,6,32,13,19,0,1,0,0,1150,"Mark","None,None,None",10,920,"Tyler Helland",920,0]

{"sheet":"Nats Fri K v S rd2","index":3,"n_rows":6,"n_cols":20,"rows_kept":6,"cut":false,"hidden":false,"merged":[]}
[null,null,null,null,null,null,null,null,"Winner:",{"$f":"IF(K2>K3, B2, IF(K3>K2, B3, \"Tie\"))","v":"Kevin"},null,"Battle Type","Battle Location and Month (i.e. MD May)","Nats",null,null,null,null,"Fleet"]
["Fleet 1 :","Kevin",null,"Fleet Units:",4.5,"Fleet Weight:",8,"Fleet Battle Damage:",1270,"Fleet Score:",2330,null,"Battle Day","Fri",null,null,null,null,"Mini-Fleet"]
["Fleet 2 :","Steve",null,"Fleet Units:",4.5,"Fleet Weight:",8,"Fleet Battle Damage:",2330,"Fleet Score:",1270,null,"Battle Number","K v S rd2",null,null,null,null,"Individual"]
["Captian","Ship","Fleet","Class","Units","Above","On","Below","Sinks","Participate all Sorties","Penalties Points","2nd Sortie Sink","Damage Points","Scored By","Notes","Weight Factor","Weight Points","Captian","Captain Points","Indiv Points"]
["Steve Andrews","Courbet","Steve",4,4.5,37,10,32,1,1,0,1,2330,"Kevin","None,None,None",8,1270,"Steve Andrews",1070]
["Kevin Plumer","Courbet","Kevin",4,4.5,24,2,33,0,1,0,0,1270,"Steve","None,None,None",8,2330,"Kevin Plumer",2330]

{"sheet":"Nats Fri Syd v Is","index":4,"n_rows":6,"n_cols":20,"rows_kept":6,"cut":false,"hidden":false,"merged":[]}
[null,null,null,null,null,null,null,null,"Winner:",{"$f":"IF(K2>K3, B2, IF(K3>K2, B3, \"Tie\"))","v":"Allied"},null,"Battle Type","Battle Location and Month (i.e. MD May)","Nats",null,null,null,null,"Fleet"]
["Fleet 1 :","Allied",null,"Fleet Units:",3.5,"Fleet Weight:",7,"Fleet Battle Damage:",320,"Fleet Score:",340,null,"Battle Day","Fri",null,null,null,null,"Mini-Fleet"]
["Fleet 2 :","Axis",null,"Fleet Units:",3.5,"Fleet Weight:",7,"Fleet Battle Damage:",340,"Fleet Score:",320,null,"Battle Number","Syd v Is",null,null,null,null,"Individual"]
["Captian","Ship","Fleet","Class","Units","Above","On","Below","Sinks","Participate all Sorties","Penalties Points","2nd Sortie Sink","Damage Points","Scored By","Notes","Weight Factor","Weight Points","Captian","Captain Points","Indiv Points"]
["Sydnee McKinzie","Radetzky","Axis",3,3.5,13,0,7,0,1,0,0,340,"Charley","None,None,None",7,320,"Sydnee McKinzie",320]
["Isaac McKinzie","Radetzky","Allied",3,3.5,5,9,3,0,1,0,0,320,"Lee","None,None,None",7,340,"Isaac McKinzie",340]

{"sheet":"Nats Fri 1","index":5,"n_rows":36,"n_cols":20,"rows_kept":36,"cut":false,"hidden":false,"merged":[]}
[null,null,null,null,null,null,null,null,"Winner:",{"$f":"IF(K2>K3, B2, IF(K3>K2, B3, \"Tie\"))","v":"Axis"},null,"Battle Type","Battle Location and Month (i.e. MD May)","Nats",null,null,null,null,"Fleet"]
["Fleet 1 :","Allied",null,"Fleet Units:",76,"Fleet Weight:",135,"Fleet Battle Damage:",20800,"Fleet Score:",14840.0009765625,null,"Battle Day","Fri",null,null,null,null,"Mini-Fleet"]
["Fleet 2 :","Axis",null,"Fleet Units:",60.5,"Fleet Weight:",104,"Fleet Battle Damage:",15040,"Fleet Score:",20800,null,"Battle Number",1,null,null,null,null,"Individual"]
["Captian","Ship","Fleet","Class","Units","Above","On","Below","Sinks","Participate all Sorties","Penalties Points","2nd Sortie Sink","Damage Points","Scored By","Notes","Weight Factor","Weight Points","Captian","Captain Points","Indiv Points"]
["William Tustin","Lutzow","Allied",3,3.5,6,0,0,0,1,0,0,60,"Brian","None,None,None",7,779.85185185185185,"William Tustin",779.85185185185185]
["Kevin Plumer","Courbet","Allied",4,4.5,9,8,16,1,0,0,0,1530,"Mark","None,None,None",4,445.62962962962962,"Kevin Plumer",445.62962962962962]
["Steve Andrews","Courbet","Allied",4,4.5,14,2,4,0,1,0,0,300,"Mark","None,None,None",8,891.25925925925924,"Steve Andrews",891.25925925925924]
["Kas Gaigalas","Washington","Allied",6,6,36,10,20,0,1,0,0,1160,"Craig","None,None,None",10,1114.0740740740739,"Kas Gaigalas",1114.0740740740739]
["John Jones","Gearing","Allied",1,1.5,4,0,1,0,1,0,0,70,"Tom","None,None,None",4,445.62962962962962,"John Jones",445.62962962962962]
["Chris Pearce","Suffren","Allied",3,3,11,8,2,1,1,0,1,1030,"Brian","None,None,None",7,779.85185185185185,"Chris Pearce",579.85185185185185]
["Lou Meszaros","Courbet","Allied",4,4.5,5,1,8,1,1,0,1,1110,"Brandon","None,None,None",8,891.25925925925924,"Lou Meszaros",691.25925925925924]
["Richard Whitsell","Jamaica","Allied",2,2.5,7,2,2,1,1,0,1,770,"Randy","None,None,None",6,668.44444444444446,"Richard Whitsell",468.44444444444446]
["Carl Camurati","Nelson","Allied",6,6,241,43,87,0,1,200,0,5880,"Bob","Ram Below Charley,None,None",10,914.07407407407391,"Carl Camurati",914.07407407407391]
["Tom Palmer","Warspite","Allied",5,5.5,53,8,32,0,1,0,0,1650,"Andy","None,None,None",9,1002.6666666666666,"Tom Palmer",1002.6666666666666]
["Nathan Graham","Gearing","Allied",1,1.5,0,0,0,0,1,0,0,0,"Charley","None,None,None",4,445.62962962962962,"Nathan Graham",445.62962962962962]
["Jeff Lide","Rodney","Allied",6,6,129,12,41,1,1,0,1,3760,"Tyler","None,None,None",10,1114.0740740740739,"Jeff Lide",914.07407407407391]
["Ken Arena","Iron Duke","Allied",5,5,19,2,11,0,1,0,0,560,"Tom","None,None,None",9,1002.6666666666666,"Ken Arena",1002.6666666666666]
["Philip Pace","Gearing","Allied",1,1.5,3,0,0,0,1,0,0,30,"Randy","None,None,None",4,445.62962962962962,"Philip Pace",445.62962962962962]
["Robert Arena","Arizona","Allied",5,5.5,27,4,18,0,1,0,0,890,"Charley","None,None,None",9,1002.6666666666666,"Robert Arena",1002.6666666666666]
["Isaac McKinzie","Radetzky","Allied",3,3.5,21,14,6,0,1,0,0,670,"Sydnee","None,None,None",7,779.85185185185185,"Isaac McKinzie",779.85185185185185]
["Lee McKinzie","North Carolina","Allied",6,6,16,0,5,0,1,0,0,310,"Sydnee","None,None,None",10,1114.0740740740739,"Lee McKinzie",1114.0740740740739]
["Robert Stalnaker","Revenge","Allied",5,5.5,4,1,2,1,1,0,1,1020,"Mark","None,None,None",9,1002.6666666666666,"Robert Stalnaker",802.66666666666663]
["Sydnee McKinzie","Radetzky","Axis",3,3.5,20,16,21,0,1,0,0,1150,"Ken","None,None,None",7,1400,"Sydnee McKinzie",1400]
["Brian Lamb","Lutzow","Axis",3,3.5,6,2,2,0,1,0,0,160,"Chris","None,None,None",7,1400,"Brian Lamb",1400]
["Randy Stiponovich","Luigi Cardona","Axis",2,2,2,0,2,0,1,0,0,80,"Rick","None,None,None",6,1200,"Randy Stiponovich",1200]
["Craig Singer","Nagato","Axis",6,6,65,4,8,0,1,0,0,970,"Kas","None,None,None",10,2000,"Craig Singer",2000]
["Brandon Smith","Glorie","Axis",2,2.5,6,2,3,0,1,0,0,190,"Lou","None,None,None",6,1200,"Brandon Smith",1200]
["Charley Stephens","Seydlitz","Axis",4,4.5,10,5,16,0,1,0,0,680,"Rob","None,None,None",8,1600,"Charley Stephens",1600]
["Mark Lide","Nagato","Axis",6,6,29,3,15,0,1,0,0,800,"Ron","None,None,None",10,2000,"Mark Lide",2000]
["Andy Terpstra","Kongo","Axis",4,4.5,47,1,25,0,1,0,0,1240,"Tom","None,None,None",8,1600,"Andy Terpstra",1600]
["Bob Hoernemann","Kongo","Axis",4,4.5,33,2,20,0,1,0,0,970,"Tom","None,None,None",8,1600,"Bob Hoernemann",1600]
["Gerald Roberts","Kongo","Axis",4,4.5,56,8,23,0,1,0,0,1410,"Lou","None,None,None",8,1600,"Gerald Roberts",1600]
["David Haynes","Kongo","Axis",4,4.5,10,0,3,1,0,0,0,990,"Rick","None,None,None",4,800,"David Haynes",800]
["Tyler Helland","Nagato","Axis",6,6,94,17,34,0,1,0,0,2300,"Nate","None,None,None",10,2000,"Tyler Helland",2000]
["Thomas Tanner","Ostfriesland","Axis",4,4.5,56,6,46,0,1,0,0,2060,"Kevin","None,None,None",8,1600,"Thomas Tanner",1600]
["Mark Kuntz","Nassau","Axis",4,4,52,15,14,1,0,0,0,2040,"Kevin","None,None,None",4,800,"Mark Kuntz",800]

{"sheet":"Nats Thur Campaign","index":6,"n_rows":17,"n_cols":43,"rows_kept":17,"cut":false,"hidden":false,"merged":[]}
[null,null,null,null,null,null,null,null,"Winner:",{"$f":"IF(K2>K3, B2, IF(K3>K2, B3, \"Tie\"))","v":"Allied"},null,null,"Battle Location and Month (i.e. MD May)","Nats",null,"Convoy Runs",null,null,null,null,null,null,"Sinks",null,null,null,null,null,"Convoy Friendly Ram",null,null,null,null,null,null,"Ram Penalties"]
["Fleet 1 :","Allied",null,null,null,"Fleet Points:",{"$f":"B15","v":15700},"Fleet Penalties:",{"$f":"B16","v":0},"Fleet Score:",{"$f":"B17","v":15700},null,"Battle Day","Thur",null,"Captain","Fleet","Ship","Ship Length","Number of Runs","Points",null,"Captain","Fleet","Ship","Class","Sink Points",null,"Ramming Captain","Fleet","Convoy Ship","Convoy Captain","Ship Length","Points",null,"Ramming Captain","Fleet","Ram Type","Rammed Captain","Rammed Ship","Rammed Ship Class","Ram Sink","Points"]
["Fleet 2 :","Axis",null,null,null,"Fleet Points:",{"$f":"C15","v":5950},"Fleet Penalties:",{"$f":"C16","v":200},"Fleet Score:",{"$f":"C17","v":5750},null,null,null,null,"Tom Palmer","Allied","Saratoga",74,4,3400,null,"Lee McKinzie","Allied","North Carolina",6,1000,null,null,null,null,null,null,null,null,"Andy Terpstra","Axis","Below","Kevin Plumer","Lutzow",3,0,200]
[null,null,null,null,null,null,null,null,null,null,null,null,null,null,null,"Robert Stalnaker","Allied","Red Oak",37,3,1650,null,"Ken Arena","Allied","Iron Duke",5,900]
["Fleet:",{"$f":"B2","v":"Allied"},{"$f":"B3","v":"Axis"},null,null,null,null,null,null,null,null,null,null,null,null,"Isaac McKinzie","Allied","La Baguette",37,3,1650,null,"Richard Whitsell","Allied","Jamaica",2,600]
["Targets Remaining:",0,0,null,null,null,null,null,null,null,null,null,null,null,null,"Robert Stalnaker","Allied","Patrick Henry",37,7,3850,null,"Chris Pearce","Allied","Suffren",3,700]
["Target Points:",0,0,null,null,null,null,null,null,null,null,null,null,null,null,"Marty Hayes","Allied","LST 1",27,4,1200,null,"Thomas Tanner","Axis","Ostfriesland",4,800]
["Convoy Run Points:",14900,2750,null,null,null,null,null,null,null,null,null,null,null,null,"Cameron Hunt","Allied","LST 5",27,4,1200]
["Scuttled Convoy Points:",0,0,null,null,null,null,null,null,null,null,null,null,null,null,"Cameron Hunt","Allied","LST 6",27,1,300]
["Sink Points:",800,3200,null,null,null,null,null,null,null,null,null,null,null,null,"Nathan Graham","Allied","Mathers",50,3,1650]
["Convoy Friendly Ram Points:",null,null,null,null,null,null,null,null,null,null,null,null,null,null,"David Haynes","Axis","Mizuhu",50,4,2200]
["Ram Penalty Points:",null,200,null,null,null,null,null,null,null,null,null,null,null,null,"Mark Kuntz","Axis","Hospital",50,1,550]
["No Ship on Water Points:",0,0]
["Convoy Run Every 10 Min Points:",0,0]
["Total Points:",{"$f":"B7+B8+B9+B10+B11+B13+B14","v":15700},{"$f":"C7+C8+C9+C10+C11+C13+C14","v":5950}]
["Total Penalties:",{"$f":"B12","v":0},{"$f":"C12","v":200}]
["Fleet Score:",{"$f":"B15-B16","v":15700},{"$f":"C15-C16","v":5750}]

{"sheet":"Nats Thur 1","index":7,"n_rows":34,"n_cols":20,"rows_kept":34,"cut":false,"hidden":false,"merged":[]}
[null,null,null,null,null,null,null,null,"Winner:",{"$f":"IF(K2>K3, B2, IF(K3>K2, B3, \"Tie\"))","v":"Allied"},null,"Battle Type","Battle Location and Month (i.e. MD May)","Nats",null,null,null,null,"Fleet"]
["Fleet 1 :","Allied",null,"Fleet Units:",72,"Fleet Weight:",120,"Fleet Battle Damage:",19590,"Fleet Score:",22720.001953125,null,"Battle Day","Thur",null,null,null,null,"Mini-Fleet"]
["Fleet 2 :","Axis",null,"Fleet Units:",65,"Fleet Weight:",108,"Fleet Battle Damage:",22720,"Fleet Score:",19390,null,"Battle Number",1,null,null,null,null,"Individual"]
["Captian","Ship","Fleet","Class","Units","Above","On","Below","Sinks","Participate all Sorties","Penalties Points","2nd Sortie Sink","Damage Points","Scored By","Notes","Weight Factor","Weight Points","Captian","Captain Points","Indiv Points"]
["Craig Singer","Nagato","Axis",6,6,58,10,42,1,1,0,1,3040,"Kevin","None,None,None",10,1813.8888888888887,"Craig Singer",1613.8888888888887]
["Mark Lide","Nagato","Axis",6,6,15,4,17,0,1,0,0,740,"Kevin","None,None,None",10,1813.8888888888887,"Mark Lide",1813.8888888888887]
["David Haynes","Kongo","Axis",4,4.5,51,10,17,1,1,0,1,2020,"Kevin","None,None,None",8,1451.1111111111111,"David Haynes",1251.1111111111111]
["Tyler Helland","Nagato","Axis",6,6,70,19,44,0,1,0,0,2400,"Rick","None,None,None",10,1813.8888888888887,"Tyler Helland",1813.8888888888887]
["Richard Whitsell","Jamaica","Allied",2,2.5,12,3,1,0,1,0,0,210,"Tyler","None,None,None",6,1136,"Richard Whitsell",1136]
["Marty Hayes","South Carolina","Allied",4,4,28,4,1,1,1,0,1,1190,"Tom","None,None,None",8,1514.6666666666667,"Marty Hayes",1314.6666666666667]
["Kevin Plumer","Courbet","Allied",4,4.5,20,9,14,1,1,0,1,1600,"Brian","None,None,None",8,1514.6666666666667,"Kevin Plumer",1314.6666666666667]
["Thomas Tanner","Ostfriesland","Axis",4,4.5,29,7,11,1,0,0,0,1560,"Ken","None,None,None",4,725.55555555555554,"Thomas Tanner",725.55555555555554]
["Brian Lamb","Lutzow","Axis",3,3.5,23,9,12,0,1,0,0,770,"Chris","None,None,None",7,1269.7222222222222,"Brian Lamb",1269.7222222222222]
["Randy Stiponovich","Glorie","Axis",2,2.5,23,15,15,0,1,0,0,980,"Tom","None,None,None",6,1088.3333333333333,"Randy Stiponovich",1088.3333333333333]
["Charley Stephens","Seydlitz","Axis",4,4.5,18,3,4,0,1,0,0,360,"Rob","None,None,None",8,1451.1111111111111,"Charley Stephens",1451.1111111111111]
["Bob Hoernemann","Kongo","Axis",4,4.5,48,4,38,0,1,200,0,1700,"Lou","Ram Below Kevin,None,None",8,1251.1111111111111,"Bob Hoernemann",1251.1111111111111]
["Mark Kuntz","Nassau","Axis",4,4,2,0,4,1,0,0,0,940,"Isaac","None,None,None",4,725.55555555555554,"Mark Kuntz",725.55555555555554]
["Gerald Roberts","Kongo","Axis",4,4.5,35,6,12,0,1,0,0,830,"John","None,None,None",8,1451.1111111111111,"Gerald Roberts",1451.1111111111111]
["Sydnee McKinzie","Baden","Axis",5,5.5,57,29,87,0,1,0,0,3760,"Steve","None,None,None",9,1632.5,"Sydnee McKinzie",1632.5]
["Andy Terpstra","Kongo","Axis",4,4.5,34,2,37,0,1,0,0,1490,"Jeff","None,None,None",8,1451.1111111111111,"Andy Terpstra",1451.1111111111111]
["Brandon Smith","Caio Duilio","Axis",4,4.5,68,7,17,1,1,0,1,2130,"Lou","None,None,None",8,1451.1111111111111,"Brandon Smith",1251.1111111111111]
["Chris Pearce","Suffren","Allied",3,3,4,2,0,0,1,0,0,80,"Brian","None,None,None",7,1325.3333333333333,"Chris Pearce",1325.3333333333333]
["Ken Arena","Iron Duke","Allied",5,5,49,8,26,1,0,0,0,2330,"Tom","None,None,None",4.5,852,"Ken Arena",852]
["John Jones","Gearing","Allied",1,1.5,2,0,0,0,1,0,0,20,"Tom","None,None,None",4,757.33333333333337,"John Jones",757.33333333333337]
["Lou Meszaros","Courbet","Allied",4,4.5,17,6,21,0,1,0,0,920,"Brandon","None,None,None",8,1514.6666666666667,"Lou Meszaros",1514.6666666666667]
["Steve Andrews","Courbet","Allied",4,4.5,4,3,3,0,1,0,0,190,"Brandon","None,None,None",8,1514.6666666666667,"Steve Andrews",1514.6666666666667]
["Carl Camurati","Nelson","Allied",6,6,100,6,18,0,1,0,0,1660,"Mark","None,None,None",10,1893.3333333333333,"Carl Camurati",1893.3333333333333]
["Tom Palmer","Warspite","Allied",5,5.5,9,2,3,0,1,0,0,220,"Randy","None,None,None",9,1704,"Tom Palmer",1704]
["Robert Arena","Arizona","Allied",5,5.5,30,3,19,0,1,0,0,930,"Mark K","None,None,None",9,1704,"Robert Arena",1704]
["Lee McKinzie","North Carolina","Allied",6,6,50,28,46,1,1,0,1,3440,"Sydnee","None,None,None",10,1893.3333333333333,"Lee McKinzie",1693.3333333333333]
["William Tustin","Jean Bart","Allied",6,6.5,19,8,68,1,1,0,1,3390,"Charley","None,None,None",10,1893.3333333333333,"William Tustin",1693.3333333333333]
["Robert Stalnaker","Revenge","Allied",5,5.5,3,1,8,1,0,0,0,1190,"Mark","None,None,None",4.5,852,"Robert Stalnaker",852]
["Philip Pace","Gearing","Allied",1,1.5,4,0,1,0,1,0,0,70,"Tom","None,None,None",4,757.33333333333337,"Philip Pace",757.33333333333337]
["Jeff Lide","Rodney","Allied",6,6,84,7,39,0,1,0,0,2150,"Tyler","None,None,None",10,1893.3333333333333,"Jeff Lide",1893.3333333333333]

{"sheet":"Nats Wed Cruiser","index":8,"n_rows":20,"n_cols":20,"rows_kept":20,"cut":false,"hidden":false,"merged":[]}
[null,null,null,null,null,null,null,null,"Winner:",{"$f":"IF(K2>K3, B2, IF(K3>K2, B3, \"Tie\"))","v":"No Flag"},null,"Battle Type","Battle Location and Month (i.e. MD May)","Nats",null,null,null,null,"Fleet"]
["Fleet 1 :","Flag",null,"Fleet Units:",17.5,"Fleet Weight:",41,"Fleet Battle Damage:",9420,"Fleet Score:",5210,null,"Battle Day","Wed",null,null,null,null,"Mini-Fleet"]
["Fleet 2 :","No Flag",null,"Fleet Units:",23.5,"Fleet Weight:",43.5,"Fleet Battle Damage:",5210,"Fleet Score:",9220,null,"Battle Number","Cruiser",null,null,null,null,"Individual"]
["Captian","Ship","Fleet","Class","Units","Above","On","Below","Sinks","Participate all Sorties","Penalties Points","2nd Sortie Sink","Damage Points","Scored By","Notes","Weight Factor","Weight Points","Captian","Captain Points","Indiv Points"]
["Philip Pace","Gearing","No Flag",1,1.5,4,2,4,1,1,0,1,600,"Bob","None,None,None",4,866.20689655172407,"Philip Pace",{"$f":"Q5","v":866.20689655172407},368.73563218390802]
["Randy Stiponovich","Glorie","Flag",2,2.5,20,5,5,0,1,0,0,450,"Bob","None,None,None",6,762.43902439024384,"Randy Stiponovich",{"$f":"Q6","v":762.43902439024384},0]
["John Jones","Gearing","Flag",1,1.5,19,0,12,1,1,0,1,950,"John","None,None,None",4,508.29268292682929,"John Jones",508.29268292682929,0]
["Andy Terpstra","Torville","Flag",3,3,59,16,20,1,1,0,1,2210,"Bob","None,None,None",7,889.51219512195132,"Andy Terpstra",889.51219512195132,0]
["Mark Lide","Shimakaze","Flag",1,1.5,7,2,2,1,1,0,1,570,"Bob","None,None,None",4,508.29268292682929,"Mark Lide",508.29268292682929,0]
["Bob Hoernemann","Radetzky","Flag",3,3.5,97,22,29,1,1,0,1,2980,"Bob","None,None,None",7,889.51219512195132,"Bob Hoernemann",889.51219512195132,0]
["Jeff Lide","Luigi Cardona","Flag",2,2,22,0,3,1,1,0,1,910,"Bob","None,None,None",6,762.43902439024384,"Jeff Lide",762.43902439024384,0]
["Tom Palmer","Connecticut","Flag",3,3.5,41,6,4,1,1,0,1,1350,"Tom","None,None,None",7,889.51219512195132,"Tom Palmer",889.51219512195132,0]
["Kevin Plumer","Lutzow","No Flag",3,3.5,75,4,26,1,0,0,0,2310,"Andy","None,None,None",3.5,757.93103448275861,"Kevin Plumer",757.93103448275861,322.64367816091954]
["Nathan Graham","Gearing","No Flag",1,1.5,3,1,6,1,1,0,1,630,"Bob","None,None,None",4,866.20689655172407,"Nathan Graham",866.20689655172407,368.73563218390802]
["Charley Stephens","Radetzky","No Flag",3,3.5,21,2,3,0,1,0,0,340,"Charley","None,None,None",7,1515.8620689655172,"Charley Stephens",1515.8620689655172,645.28735632183907]
["Isaac McKinzie","Radetzky","No Flag",3,3.5,22,10,8,0,1,200,0,660,"Lee","Ram Below tom,None,None",7,1315.8620689655172,"Isaac McKinzie",1315.8620689655172,645.28735632183907]
["Tyler Helland","Duca","No Flag",2,2.5,16,2,0,0,1,0,0,200,"Tyler","None,None,None",6,1299.3103448275863,"Tyler Helland",1299.3103448275863,553.10344827586209]
["Richard Whitsell","Jamaica","No Flag",2,2.5,26,2,0,0,1,0,0,300,"Rick","None,None,None",6,1299.3103448275863,"Richard Whitsell",1299.3103448275863,553.10344827586209]
["Craig Singer","Agano","No Flag",2,2.5,6,1,1,0,0,0,0,110,"Craig","None,None,None",3,649.65517241379314,"Craig Singer",649.65517241379314,276.55172413793105]
["Kas Gaigalas","Glorie","No Flag",2,2.5,0,0,2,0,0,0,0,60,"Kas","None,None,None",3,649.65517241379314,"Kas Gaigalas",649.65517241379314,276.55172413793105]

{"sheet":"Nats Wed CS v IM","index":9,"n_rows":6,"n_cols":20,"rows_kept":6,"cut":false,"hidden":false,"merged":[]}
[null,null,null,null,null,null,null,null,"Winner:",{"$f":"IF(K2>K3, B2, IF(K3>K2, B3, \"Tie\"))","v":"Charley"},null,"Battle Type","Battle Location and Month (i.e. MD May)","Nats",null,null,null,null,"Fleet"]
["Fleet 1 :","Charley",null,"Fleet Units:",3.5,"Fleet Weight:",7,"Fleet Battle Damage:",860,"Fleet Score:",1040,null,"Battle Day","Wed",null,null,null,null,"Mini-Fleet"]
["Fleet 2 :","Isaac",null,"Fleet Units:",3.5,"Fleet Weight:",7,"Fleet Battle Damage:",1040,"Fleet Score:",860,null,"Battle Number","CS v IM",null,null,null,null,"Individual"]
["Captian","Ship","Fleet","Class","Units","Above","On","Below","Sinks","Participate all Sorties","Penalties Points","2nd Sortie Sink","Damage Points","Scored By","Notes","Weight Factor","Weight Points","Captian","Captain Points","Indiv Points"]
["Charley Stephens","Radetzky","Charley",3,3.5,19,11,15,0,1,0,0,860,"Isaac","None,None,None",7,1040,"Charley Stephens",1040,180]
["Isaac McKinzie","Radetzky","Isaac",3,3.5,15,16,19,0,1,0,0,1040,"Charley","None,None,None",7,860,"Isaac McKinzie",860,0]

{"sheet":"Nats Wed CS v LM","index":10,"n_rows":6,"n_cols":20,"rows_kept":6,"cut":false,"hidden":false,"merged":[]}
[null,null,null,null,null,null,null,null,"Winner:",{"$f":"IF(K2>K3, B2, IF(K3>K2, B3, \"Tie\"))","v":"Charley"},null,"Battle Type","Battle Location and Month (i.e. MD May)","Nats",null,null,null,null,"Fleet"]
["Fleet 1 :","Charley",null,"Fleet Units:",3.5,"Fleet Weight:",7,"Fleet Battle Damage:",850,"Fleet Score:",1200,null,"Battle Day","Wed",null,null,null,null,"Mini-Fleet"]
["Fleet 2 :","Lee",null,"Fleet Units:",3.5,"Fleet Weight:",7,"Fleet Battle Damage:",1200,"Fleet Score:",850,null,"Battle Number","CS v LM",null,null,null,null,"Individual"]
["Captian","Ship","Fleet","Class","Units","Above","On","Below","Sinks","Participate all Sorties","Penalties Points","2nd Sortie Sink","Damage Points","Scored By","Notes","Weight Factor","Weight Points","Captian","Captain Points","Indiv Points"]
["Lee McKinzie","Radetzky","Lee",3,3.5,32,17,18,0,1,0,0,1200,"Charley","None,None,None",7,850,"Lee McKinzie",850,0]
["Charley Stephens","Radetzky","Charley",3,3.5,15,11,16,0,1,0,0,850,"Lee","None,None,None",7,1200,"Charley Stephens",1200,350]

{"sheet":"Nats Wed KP v carl","index":11,"n_rows":6,"n_cols":20,"rows_kept":6,"cut":false,"hidden":false,"merged":[]}
[null,null,null,null,null,null,null,null,"Winner:",{"$f":"IF(K2>K3, B2, IF(K3>K2, B3, \"Tie\"))","v":"Kevin"},null,"Battle Type","Battle Location and Month (i.e. MD May)","Nats",null,null,null,null,"Fleet"]
["Fleet 1 :","Kevin",null,"Fleet Units:",4.5,"Fleet Weight:",8,"Fleet Battle Damage:",1210,"Fleet Score:",3390,null,"Battle Day","Wed",null,null,null,null,"Mini-Fleet"]
["Fleet 2 :","Carl",null,"Fleet Units:",6,"Fleet Weight:",10,"Fleet Battle Damage:",3390,"Fleet Score:",1210,null,"Battle Number","KP v carl",null,null,null,null,"Individual"]
["Captian","Ship","Fleet","Class","Units","Above","On","Below","Sinks","Participate all Sorties","Penalties Points","2nd Sortie Sink","Damage Points","Scored By","Notes","Weight Factor","Weight Points","Captian","Captain Points","Indiv Points"]
["Carl Camurati","Nelson","Carl",6,6,128,9,31,1,1,0,1,3390,"Kevin","None,None,None",10,1210,"Carl Camurati",{"$f":"Q5","v":1210},0]
["Kevin Plumer","Seydlitz","Kevin",4,4.5,16,3,33,0,1,0,0,1210,"Carl","None,None,None",8,3390,"Kevin Plumer",3390,2180]

{"sheet":"Nats Wed Arena v courbet","index":12,"n_rows":8,"n_cols":20,"rows_kept":8,"cut":false,"hidden":false,"merged":[]}
[null,null,null,null,null,null,null,null,"Winner:",{"$f":"IF(K2>K3, B2, IF(K3>K2, B3, \"Tie\"))","v":"Courbets"},null,"Battle Type","Battle Location and Month (i.e. MD May)","Nats",null,null,null,null,"Fleet"]
["Fleet 1 :","Arenas",null,"Fleet Units:",10.5,"Fleet Weight:",18,"Fleet Battle Damage:",2750,"Fleet Score:",840,null,"Battle Day","Wed",null,null,null,null,"Mini-Fleet"]
["Fleet 2 :","Courbets",null,"Fleet Units:",9,"Fleet Weight:",16,"Fleet Battle Damage:",840,"Fleet Score:",2750,null,"Battle Number","Arena v courbet",null,null,null,null,"Individual"]
["Captian","Ship","Fleet","Class","Units","Above","On","Below","Sinks","Participate all Sorties","Penalties Points","2nd Sortie Sink","Damage Points","Scored By","Notes","Weight Factor","Weight Points","Captian","Captain Points","Indiv Points"]
["Robert Arena","Arizona","Arenas",5,5.5,40,2,10,1,1,0,1,1640,"Steve","None,None,None",9,420,"Robert Arena",{"$f":"Q5","v":420},0]
["Steve Andrews","Courbet","Courbets",4,4.5,14,2,4,0,1,0,0,300,"Rob","None,None,None",8,1375,"Steve Andrews",1375,955]
["Kevin Plumer","Courbet","Courbets",4,4.5,11,5,11,0,1,0,0,540,"Ken","None,None,None",8,1375,"Kevin Plumer",1375,955]
["Ken Arena","Iron Duke","Arenas",5,5,40,7,19,0,1,0,0,1110,"Steve","None,None,None",9,420,"Ken Arena",420,0]

{"sheet":"Nats Wed KP v SA","index":13,"n_rows":6,"n_cols":20,"rows_kept":6,"cut":false,"hidden":false,"merged":[]}
[null,null,null,null,null,null,null,null,"Winner:",{"$f":"IF(K2>K3, B2, IF(K3>K2, B3, \"Tie\"))","v":"Steve"},null,"Battle Type","Battle Location and Month (i.e. MD May)","Nats",null,null,null,null,"Fleet"]
["Fleet 1 :","Kevin",null,"Fleet Units:",4.5,"Fleet Weight:",8,"Fleet Battle Damage:",2850,"Fleet Score:",2050,null,"Battle Day","Wed",null,null,null,null,"Mini-Fleet"]
["Fleet 2 :","Steve",null,"Fleet Units:",4.5,"Fleet Weight:",8,"Fleet Battle Damage:",2050,"Fleet Score:",2850,null,"Battle Number","KP v SA",null,null,null,null,"Individual"]
["Captian","Ship","Fleet","Class","Units","Above","On","Below","Sinks","Participate all Sorties","Penalties Points","2nd Sortie Sink","Damage Points","Scored By","Notes","Weight Factor","Weight Points","Captian","Captain Points","Indiv Points"]
["Kevin Plumer","Courbet","Kevin",4,4.5,43,9,48,1,1,0,1,2850,"Steve","None,None,None",8,2050,"Kevin Plumer",{"$f":"Q5","v":2050},0]
["Steve Andrews","Courbet","Steve",4,4.5,21,14,52,0,1,0,0,2050,"Kevin","None,None,None",8,2850,"Steve Andrews",2850,800]

{"sheet":"Nats Wed 1","index":14,"n_rows":18,"n_cols":20,"rows_kept":18,"cut":false,"hidden":false,"merged":[]}
[null,null,null,null,null,null,null,null,"Winner:",{"$f":"IF(K2>K3, B2, IF(K3>K2, B3, \"Tie\"))","v":"Axis"},null,"Battle Type","Battle Location and Month (i.e. MD May)","Nats",null,null,null,null,"Fleet"]
["Fleet 1 :","Allied",null,"Fleet Units:",41.5,"Fleet Weight:",75,"Fleet Battle Damage:",5030,"Fleet Score:",2800,null,"Battle Day","Wed",null,null,null,null,"Mini-Fleet"]
["Fleet 2 :","Axis",null,"Fleet Units:",24.5,"Fleet Weight:",43,"Fleet Battle Damage:",2800,"Fleet Score:",5030,null,"Battle Number",1,null,null,null,null,"Individual"]
["Captian","Ship","Fleet","Class","Units","Above","On","Below","Sinks","Participate all Sorties","Penalties Points","2nd Sortie Sink","Damage Points","Scored By","Notes","Weight Factor","Weight Points","Captian","Captain Points","Indiv Points"]
["Craig Singer","Nagato","Axis",6,6,3,0,1,0,1,0,0,60,"Kas","None,None,None",10,1169.7674418604652,"Craig Singer",1169.7674418604652]
["Brian Lamb","Lutzow","Axis",3,3.5,0,0,0,0,1,0,0,0,"Carl","None,None,None",7,818.83720930232562,"Brian Lamb",818.83720930232562]
["Carl Camurati","Nelson","Allied",6,6,27,4,4,0,1,0,0,470,"Brian","None,None,None",10,373.33333333333331,"Carl Camurati",373.33333333333331]
["Jeff Lide","Rodney","Allied",6,6,35,6,8,0,1,0,0,710,"Mark","None,None,None",10,373.33333333333331,"Jeff Lide",373.33333333333331]
["Mark Lide","Nagato","Axis",6,6,39,7,20,0,1,0,0,1130,"Jeff","None,None,None",10,1169.7674418604652,"Mark Lide",1169.7674418604652]
["Isaac McKinzie","Radetzky","Allied",3,3.5,1,0,0,0,1,0,0,10,"Lee","None,None,None",7,261.33333333333337,"Isaac McKinzie",261.33333333333337]
["Charley Stephens","Seydlitz","Axis",4,4.5,0,0,0,0,1,0,0,0,"Lee","None,None,None",8,935.81395348837214,"Charley Stephens",935.81395348837214]
["Richard Whitsell","Jamaica","Allied",2,2.5,9,1,0,0,1,0,0,110,"Rick","None,None,None",6,224,"Richard Whitsell",224]
["Tom Palmer","Warspite","Allied",5,5.5,10,3,8,0,1,0,0,400,"Tom","None,None,None",9,336,"Tom Palmer",336]
["William Tustin","Suffren","Allied",3,3,47,11,31,0,1,0,0,1620,"Craig","None,None,None",7,261.33333333333337,"William Tustin",261.33333333333337]
["Steve Andrews","Courbet","Allied",4,4.5,11,2,0,0,1,0,0,150,"Brian","None,None,None",8,298.66666666666669,"Steve Andrews",298.66666666666669]
["Thomas Tanner","Ostfriesland","Axis",4,4.5,43,4,10,1,1,0,1,1610,"Kevin","None,None,None",8,935.81395348837214,"Thomas Tanner",{"$f":"Q16","v":935.81395348837214}]
["Kevin Plumer","Courbet","Allied",4,4.5,4,2,10,1,1,0,1,1180,"Tom","None,None,None",8,298.66666666666669,"Kevin Plumer",{"$f":"Q17","v":298.66666666666669}]
["Kas Gaigalas","Washington","Allied",6,6,9,7,5,0,1,0,0,380,"craig","None,None,None",10,373.33333333333331,"Kas Gaigalas",373.33333333333331]

{"sheet":"Nats Tues Campaign","index":15,"n_rows":17,"n_cols":43,"rows_kept":17,"cut":false,"hidden":false,"merged":[]}
[null,null,null,null,null,null,null,null,"Winner:",{"$f":"IF(K2>K3, B2, IF(K3>K2, B3, \"Tie\"))","v":"Allied"},null,null,"Battle Location and Month (i.e. MD May)","Nats",null,"Convoy Runs",null,null,null,null,null,null,"Sinks",null,null,null,null,null,"Convoy Friendly Ram",null,null,null,null,null,null,"Ram Penalties"]
["Fleet 1 :","Allied",null,null,null,"Fleet Points:",{"$f":"B15","v":14550},"Fleet Penalties:",{"$f":"B16","v":0},"Fleet Score:",{"$f":"B17","v":14550},null,"Battle Day","Tues",null,"Captain","Fleet","Ship","Ship Length","Number of Runs","Points",null,"Captain","Fleet","Ship","Class","Sink Points",null,"Ramming Captain","Fleet","Convoy Ship","Convoy Captain","Ship Length","Points",null,"Ramming Captain","Fleet","Ram Type","Rammed Captain","Rammed Ship","Rammed Ship Class","Ram Sink","Points"]
["Fleet 2 :","Axis",null,null,null,"Fleet Points:",{"$f":"C15","v":5250},"Fleet Penalties:",{"$f":"C16","v":400},"Fleet Score:",{"$f":"C17","v":4850},null,null,null,null,"Tom Palmer","Allied","Saratoga",74,4,3400,null,"William Tustin","Allied","Jean Bart",6,1000,null,null,null,null,null,null,null,null,"Bob Hoernemann","Axis","Sink","John Jones","Gearing",1,1,400]
[null,null,null,null,null,null,null,null,null,null,null,null,null,null,null,"Nathan Graham","Allied","Mathews",50,2,1100,null,"Kas Gaigalas","Allied","Glorie",2,600]
["Fleet:",{"$f":"B2","v":"Allied"},{"$f":"B3","v":"Axis"},null,null,null,null,null,null,null,null,null,null,null,null,"Cameron Hunt","Allied","La Baguette",37,3,1650,null,"Ken Arena","Allied","Iron Duke",5,900]
["Targets Remaining:",0,0,null,null,null,null,null,null,null,null,null,null,null,null,"Cameron Hunt","Allied","#6 FST",27,1,300,null,"Mark Kuntz","Axis","Nassau",4,800]
["Target Points:",0,0,null,null,null,null,null,null,null,null,null,null,null,null,"Isaac McKinzie","Allied","LST",27,1,300,null,"Brian Lamb","Axis","Lutzow",3,700]
["Convoy Run Points:",11250,2750,null,null,null,null,null,null,null,null,null,null,null,null,"William Tustin","Allied","LST",27,4,1200,null,"Carl Bitondo","Axis","Deutschland",3,700]
["Scuttled Convoy Points:",0,0,null,null,null,null,null,null,null,null,null,null,null,null,"Robert Stalnaker","Allied","Red Oak",37,6,3300,null,"Eric Bitondo","Axis","Deutschland",3,700]
["Sink Points:",3300,2500,null,null,null,null,null,null,null,null,null,null,null,null,"Gerald Roberts","Axis","Mizaho",50,3,1650,null,"Mark Lide","Axis","Shimu",1,400]
["Convoy Friendly Ram Points:",null,null,null,null,null,null,null,null,null,null,null,null,null,null,"David Haynes","Axis","mizaho",50,2,1100]
["Ram Penalty Points:",null,400]
["No Ship on Water Points:",0,0]
["Convoy Run Every 10 Min Points:",0,0]
["Total Points:",{"$f":"B7+B8+B9+B10+B11+B13+B14","v":14550},{"$f":"C7+C8+C9+C10+C11+C13+C14","v":5250}]
["Total Penalties:",{"$f":"B12","v":0},{"$f":"C12","v":400}]
["Fleet Score:",{"$f":"B15-B16","v":14550},{"$f":"C15-C16","v":4850}]

{"sheet":"Nats Tues 1","index":16,"n_rows":39,"n_cols":20,"rows_kept":39,"cut":false,"hidden":false,"merged":[]}
[null,null,null,null,null,null,null,null,"Winner:",{"$f":"IF(K2>K3, B2, IF(K3>K2, B3, \"Tie\"))","v":"Axis"},null,"Battle Type","Battle Location and Month (i.e. MD May)","Nats",null,null,null,null,"Fleet"]
["Fleet 1 :","Allied",null,"Fleet Units:",81,"Fleet Weight:",139.5,"Fleet Battle Damage:",20620,"Fleet Score:",18770,null,"Battle Day","Tues",null,null,null,null,"Mini-Fleet"]
["Fleet 2 :","Axis",null,"Fleet Units:",70,"Fleet Weight:",109.5,"Fleet Battle Damage:",19020,"Fleet Score:",20620,null,"Battle Number",1,null,null,null,null,"Individual"]
["Captian","Ship","Fleet","Class","Units","Above","On","Below","Sinks","Participate all Sorties","Penalties Points","2nd Sortie Sink","Damage Points","Scored By","Notes","Weight Factor","Weight Points","Captian","Captain Points","Indiv Points"]
["Randy Stiponovich","Glorie","Axis",2,2.5,15,2,16,0,1,0,0,670,"Rick","None,None,None",6,1129.8630136986301,"Randy Stiponovich",1129.8630136986301]
["Brian Lamb","Lutzow","Axis",3,3.5,48,5,3,0,1,0,0,670,"Chris","None,None,None",7,1318.1735159817351,"Brian Lamb",1318.1735159817351]
["John Jones","Gearing","Allied",1,1.5,0,0,0,0,1,0,0,0,"Brian","None,None,None",4,545.3763440860215,"John Jones",545.3763440860215]
["Chris Pearce","Suffren","Allied",3,3,0,0,0,0,1,0,0,0,"Brian","None,None,None",7,954.40860215053772,"Chris Pearce",954.40860215053772]
["Mark Lide","Nagato","Axis",6,6,57,7,29,0,1,0,0,1580,"Jeff","None,None,None",10,1883.1050228310501,"Mark Lide",1883.1050228310501]
["Mark Kuntz","Nassau","Axis",4,4,46,9,6,1,0,0,0,1620,"Steve","None,None,None",4,753.24200913242009,"Mark Kuntz",753.24200913242009]
["Brandon Smith","Caio Duilio","Axis",4,4.5,37,4,5,0,1,0,0,600,"Lou","None,None,None",8,1506.4840182648402,"Brandon Smith",1506.4840182648402]
["Thomas Tanner","Ostfriesland","Axis",4,4.5,31,3,21,1,1,0,1,1800,"Ken","None,None,None",8,1506.4840182648402,"Thomas Tanner",1306.4840182648402]
["Bob Hoernemann","Radetzky","Axis",3,3.5,11,2,1,0,0,0,0,180,"Rick","None,None,None",3.5,659.08675799086757,"Bob Hoernemann",659.08675799086757]
["Bob Hoernemann","Kongo","Axis",4,4.5,18,1,8,1,0,0,0,1240,"Rick","None,None,None",4,753.24200913242009,"Bob Hoernemann",753.24200913242009]
["Tyler Helland","Nagato","Axis",6,6,50,8,12,0,1,0,0,1020,"Lou","None,None,None",10,1883.1050228310501,"Tyler Helland",1883.1050228310501]
["Andy Terpstra","Kongo","Axis",4,4.5,69,6,43,0,1,0,0,2100,"Tom P","None,None,None",8,1506.4840182648402,"Andy Terpstra",1506.4840182648402]
["Charley Stephens","Seydlitz","Axis",4,4.5,31,18,29,0,1,0,0,1540,"Lee","None,None,None",8,1506.4840182648402,"Charley Stephens",1506.4840182648402]
["David Haynes","Kongo","Axis",4,4.5,37,1,5,0,1,0,0,540,"Kevin","None,None,None",8,1506.4840182648402,"David Haynes",1506.4840182648402]
["Gerald Roberts","Kongo","Axis",4,4.5,103,15,42,0,1,0,0,2590,"Kevin","None,None,None",8,1506.4840182648402,"Gerald Roberts",1506.4840182648402]
["Craig Singer","Nagato","Axis",6,6,31,5,23,0,1,0,0,1100,"Kevin","None,None,None",10,1883.1050228310501,"Craig Singer",1883.1050228310501]
["Lee McKinzie","North Carolina","Allied",6,6,55,21,43,1,1,0,1,3260,"Charley","None,None,None",10,1363.4408602150536,"Lee McKinzie",1163.4408602150536]
["Nathan Graham","Gearing","Allied",1,1.5,8,0,1,0,1,0,0,110,"Carl","None,None,None",4,545.3763440860215,"Nathan Graham",545.3763440860215]
["Eric Bitondo","Deutschland","Axis",3,3.5,7,4,5,1,0,0,0,1000,"Nate","None,None,None",3.5,659.08675799086757,"Eric Bitondo",659.08675799086757]
["Carl Bitondo","Deutschland","Axis",3,3.5,2,1,1,1,0,0,0,770,"Nate","None,None,None",3.5,659.08675799086757,"Carl Bitondo",659.08675799086757]
["Robert Stalnaker","Revenge","Allied",5,5.5,44,4,7,1,1,0,1,1630,"Mark","None,None,None",9,1227.0967741935483,"Robert Stalnaker",1027.0967741935483]
["Lou Meszaros","Courbet","Allied",4,4.5,31,14,22,0,1,0,0,1250,"Brandon","None,None,None",8,1090.752688172043,"Lou Meszaros",1090.752688172043]
["Richard Whitsell","Jamaica","Allied",2,2.5,2,1,2,0,1,0,0,100,"Tyler","None,None,None",6,818.06451612903231,"Richard Whitsell",818.06451612903231]
["Marty Hayes","South Carolina","Allied",4,4,1,0,1,0,1,0,0,40,"Craig","None,None,None",8,1090.752688172043,"Marty Hayes",1090.752688172043]
["Isaac McKinzie","Radetzky","Allied",3,3.5,6,4,7,0,1,0,0,350,"Charley","None,None,None",7,954.40860215053772,"Isaac McKinzie",954.40860215053772]
["Ken Arena","Iron Duke","Allied",5,5,47,8,13,0,1,0,0,1020,"Tom","None,None,None",9,1227.0967741935483,"Ken Arena",1227.0967741935483]
["Kas Gaigalas","Washington","Allied",6,6,8,1,2,0,1,250,0,160,"Gerald","Speed Violation First Offense,None,None",10,1113.4408602150536,"Kas Gaigalas",1113.4408602150536]
["Jeff Lide","Rodney","Allied",6,6,51,2,30,0,1,0,0,1450,"Tyler","None,None,None",10,1363.4408602150536,"Jeff Lide",1363.4408602150536]
["Carl Camurati","Nelson","Allied",6,6,125,8,23,0,1,0,0,2100,"Craig","None,None,None",10,1363.4408602150536,"Carl Camurati",1363.4408602150536]
["Steve Andrews","Courbet","Allied",4,4.5,32,12,18,0,1,0,0,1100,"Craig","None,None,None",8,1090.752688172043,"Steve Andrews",1090.752688172043]
["Philip Pace","Gearing","Allied",1,1.5,3,0,0,0,1,0,0,30,"Tom","None,None,None",4,545.3763440860215,"Philip Pace",545.3763440860215]
["Tom Palmer","Warspite","Allied",5,5.5,76,13,47,0,1,0,0,2430,"Tyler","None,None,None",9,1227.0967741935483,"Tom Palmer",1227.0967741935483]
["Kevin Plumer","Courbet","Allied",4,4.5,39,6,32,0,1,0,0,1470,"Carl B","None,None,None",8,1090.752688172043,"Kevin Plumer",1090.752688172043]
["William Tustin","Jean Bart","Allied",6,6.5,43,9,73,1,0,0,0,3800,"Tom","None,None,None",5,681.72043010752679,"William Tustin",681.72043010752679]
["William Tustin","Lutzow","Allied",3,3.5,17,6,1,0,0,0,0,320,"Carl","None,None,None",3.5,477.20430107526886,"William Tustin",477.20430107526886]

{"sheet":"Nats Mon 2","index":17,"n_rows":29,"n_cols":20,"rows_kept":29,"cut":false,"hidden":false,"merged":[]}
[null,null,null,null,null,null,null,null,"Winner:",{"$f":"IF(K2>K3, B2, IF(K3>K2, B3, \"Tie\"))","v":"Axis"},null,"Battle Type","Battle Location and Month (i.e. MD May)","Nats",null,null,null,null,"Fleet"]
["Fleet 1 :","Allied",null,"Fleet Units:",67.5,"Fleet Weight:",120,"Fleet Battle Damage:",18020,"Fleet Score:",11100,null,"Battle Day","Mon",null,null,null,null,"Mini-Fleet"]
["Fleet 2 :","Axis",null,"Fleet Units:",46.5,"Fleet Weight:",79,"Fleet Battle Damage:",12100,"Fleet Score:",17620,null,"Battle Number",2,null,null,null,null,"Individual"]
["Captian","Ship","Fleet","Class","Units","Above","On","Below","Sinks","Participate all Sorties","Penalties Points","2nd Sortie Sink","Damage Points","Scored By","Notes","Weight Factor","Weight Points","Captian","Captain Points","Indiv Points"]
["Randy Stiponovich","Glorie","Axis",2,2.5,7,3,4,0,1,0,0,250,"Rick","None,None,None",6,1368.6075949367089,"Randy Stiponovich",1368.6075949367089]
["Robert Arena","Arizona","Allied",5,5.5,49,0,5,0,1,0,0,640,"Mark","None\t,None,None",9,907.5,"Robert Arena",907.5]
["Thomas Tanner","Seydlitz","Axis",4,4.5,11,4,14,0,1,200,0,610,"Rob","Ram below palmer,None,None",8,1624.8101265822784,"Thomas Tanner",1624.8101265822784]
["Kas Gaigalas","Washington","Allied",6,6,33,7,14,0,1,0,0,890,"Craig","None,None,None",10,1008.3333333333333,"Kas Gaigalas",1008.3333333333333]
["Bob Hoernemann","Kongo","Axis",4,4.5,49,3,22,0,1,0,0,1210,"Nate","None,None,None",8,1824.8101265822784,"Bob Hoernemann",1824.8101265822784]
["Nathan Graham","Gearing","Allied",1,1.5,4,1,0,0,1,0,0,60,"Tom","None,None,None",4,403.33333333333331,"Nathan Graham",403.33333333333331]
["William Tustin","Jean Bart","Allied",6,6.5,58,4,53,0,1,0,0,2250,"Tom","None,None,None",10,1008.3333333333333,"William Tustin",1008.3333333333333]
["Craig Singer","Nagato","Axis",6,6,66,8,32,0,1,0,0,1780,"Rick","None,None,None",10,2281.0126582278481,"Craig Singer",2281.0126582278481]
["Philip Pace","Gearing","Allied",1,1.5,2,0,1,0,1,0,0,50,"Carl","None,None,None",4,403.33333333333331,"Philip Pace",403.33333333333331]
["Kevin Plumer","Courbet","Allied",4,4.5,43,11,54,0,1,0,0,2270,"Tom","None,None,None",8,806.66666666666663,"Kevin Plumer",806.66666666666663]
["Chris Pearce","Seydlitz","Axis",4,4.5,12,0,20,1,0,0,0,1520,"Kevin","None,None,None",4,912.40506329113919,"Chris Pearce",912.40506329113919]
["Carl Camurati","Nelson","Allied",6,6,107,12,39,1,1,0,1,3480,"Randy","None,None,None",10,1008.3333333333333,"Carl Camurati",808.33333333333326]
["Lou Meszaros","Courbet","Allied",4,4.5,9,2,8,0,1,0,0,370,"Brandon","None,None,None",8,806.66666666666663,"Lou Meszaros",806.66666666666663]
["Richard Whitsell","Jamaica","Allied",2,2.5,14,2,3,0,1,0,0,270,"Tyler","None,None,None",6,605,"Richard Whitsell",605]
["Steve Andrews","Courbet","Allied",4,4.5,22,6,21,0,1,0,0,970,"Charlie","None,None,None",8,806.66666666666663,"Steve Andrews",806.66666666666663]
["Brian Lamb","Lutzow","Axis",3,3.5,12,0,1,0,1,200,0,150,"Kevin","Ram below Kas,None,None",7,1396.7088607594937,"Brian Lamb",1396.7088607594937]
["Charley Stephens","Seydlitz","Axis",4,4.5,32,11,49,0,1,0,0,2010,"Kevin","None,None,None",8,1824.8101265822784,"Charley Stephens",1824.8101265822784]
["Mark Lide","Nagato","Axis",6,6,33,4,19,0,1,0,0,980,"Jeff","None,None,None",10,2281.0126582278481,"Mark Lide",2281.0126582278481]
["Jeff Lide","Rodney","Allied",6,6,65,13,21,0,1,1000,0,1540,"Tyler","Withdraw,None,None",10,8.3333333333332575,"Jeff Lide",8.3333333333332575]
["Andy Terpstra","Kongo","Axis",4,4.5,46,4,52,0,1,0,0,2100,"Kevin","None,None,None",8,1824.8101265822784,"Andy Terpstra",1824.8101265822784]
["Isaac McKinzie","Radetzky","Allied",3,3.5,4,2,4,0,1,0,0,200,"Charley","None,None,None",7,705.83333333333337,"Isaac McKinzie",705.83333333333337]
["Marty Hayes","South Carolina","Allied",4,4,21,2,16,1,1,0,1,1530,"Steve","None,None,None",8,806.66666666666663,"Marty Hayes",606.66666666666663]
["Robert Stalnaker","Revenge","Allied",5,5.5,41,9,20,0,1,0,0,1190,"Craig","None,None,None",9,907.5,"Robert Stalnaker",907.5]
["Tyler Helland","Nagato","Axis",6,6,61,8,24,0,1,0,0,1490,"Tom","None,None,None",10,2281.0126582278481,"Tyler Helland",2281.0126582278481]
["Tom Palmer","Warspite","Allied",5,5.5,83,11,42,0,1,0,0,2310,"Andy","None,None,None",9,907.5,"Tom Palmer",907.5]

{"sheet":"Nats Mon 1","index":18,"n_rows":32,"n_cols":20,"rows_kept":32,"cut":false,"hidden":false,"merged":[]}
[null,null,null,null,null,null,null,null,"Winner:",{"$f":"IF(K2>K3, B2, IF(K3>K2, B3, \"Tie\"))","v":"Axis"},null,"Battle Type","Battle Location and Month (i.e. MD May)","Nats",null,null,null,null,"Fleet"]
["Fleet 1 :","Allied",null,"Fleet Units:",65.5,"Fleet Weight:",112,"Fleet Battle Damage:",22910,"Fleet Score:",10760,null,"Battle Day","Mon",null,null,null,null,"Mini-Fleet"]
["Fleet 2 :","Axis",null,"Fleet Units:",59.5,"Fleet Weight:",103,"Fleet Battle Damage:",11960,"Fleet Score:",21710,null,"Battle Number",1,null,null,null,null,"Individual"]
["Captian","Ship","Fleet","Class","Units","Above","On","Below","Sinks","Participate all Sorties","Penalties Points","2nd Sortie Sink","Damage Points","Scored By","Notes","Weight Factor","Weight Points","Captian","Captain Points","Indiv Points"]
["Mark Kuntz","Nassau","Axis",4,4,2,3,3,0,0,800,0,170,"Nate","Withdraw,None,None",4,89.708737864077648,"Mark Kuntz",89.708737864077648]
["Brandon Smith","Caio Duilio","Axis",4,4.5,25,4,3,0,1,0,0,420,"Lou","None,None,None",8,1779.4174757281553,"Brandon Smith",1779.4174757281553]
["Craig Singer","Nagato","Axis",6,6,19,3,12,0,1,200,0,610,"Rick","Ram Below Kevin,None,None",10,2024.2718446601943,"Craig Singer",2024.2718446601943]
["Randy Stiponovich","Glorie","Axis",2,2.5,12,3,5,0,1,0,0,330,"Rick","None,None,None",6,1334.5631067961165,"Randy Stiponovich",1334.5631067961165]
["David Haynes","Kongo","Axis",4,4.5,41,2,0,1,1,0,1,1250,"Rob","None,None,None",8,1779.4174757281553,"David Haynes",1579.4174757281553]
["Gerald Roberts","Kongo","Axis",4,4.5,74,7,49,0,1,0,0,2350,"Rob","None,None,None",8,1779.4174757281553,"Gerald Roberts",1779.4174757281553]
["Mark Lide","Nagato","Axis",6,6,11,10,11,0,1,0,0,640,"Jeff","None,None,None",10,2224.2718446601943,"Mark Lide",2224.2718446601943]
["Brian Lamb","Lutzow","Axis",3,3.5,16,1,1,0,1,0,0,210,"Kevin","None,None,None",7,1556.9902912621358,"Brian Lamb",1556.9902912621358]
["Chris Pearce","Seydlitz","Axis",4,4.5,46,14,32,0,1,0,0,1700,"Kevin","None,None,None",8,1779.4174757281553,"Chris Pearce",1779.4174757281553]
["Tyler Helland","Nagato","Axis",6,6,35,7,22,0,1,0,0,1150,"Kevin","None,None,None",10,2224.2718446601943,"Tyler Helland",2224.2718446601943]
["Andy Terpstra","Kongo","Axis",4,4.5,8,1,1,0,1,0,0,130,"Kevin","None,None,None",8,1779.4174757281553,"Andy Terpstra",1779.4174757281553]
["Bob Hoernemann","Kongo","Axis",4,4.5,29,2,19,0,1,200,0,900,"Kevin","Ram Below Kevin,None,None",8,1579.4174757281553,"Bob Hoernemann",1579.4174757281553]
["Charley Stephens","Seydlitz","Axis",4,4.5,28,13,52,0,1,0,0,2100,"Steve","None,None,None",8,1779.4174757281553,"Charley Stephens",1779.4174757281553]
["Lou Meszaros","Courbet","Allied",4,4.5,10,3,8,0,1,0,0,400,"Brandon","None,None,None",8,854.28571428571422,"Lou Meszaros",854.28571428571422]
["Robert Stalnaker","Revenge","Allied",5,5.5,51,6,23,1,1,0,1,2220,"Brandon","None,None,None",9,961.07142857142867,"Robert Stalnaker",761.07142857142867]
["Philip Pace","Gearing","Allied",1,1.5,8,0,0,0,1,0,0,80,"Carl B","None,None,None",4,427.14285714285711,"Philip Pace",427.14285714285711]
["Nathan Graham","Gearing","Allied",1,1.5,1,0,0,1,1,0,1,410,"Mark","None,None,None",4,427.14285714285711,"Nathan Graham",227.14285714285711]
["John Jones","Gearing","Allied",1,1.5,1,0,0,0,1,0,0,10,"Carl","None,None,None",4,427.14285714285711,"John Jones",427.14285714285711]
["Tom Palmer","Warspite","Allied",5,5.5,74,16,39,1,1,0,1,3130,"Tyler","None,None,None",9,961.07142857142867,"Tom Palmer",761.07142857142867]
["Kevin Plumer","Courbet","Allied",4,4.5,70,6,60,0,1,0,0,2620,"Andy","None,None,None",8,854.28571428571422,"Kevin Plumer",854.28571428571422]
["Richard Whitsell","Jamaica","Allied",2,2.5,16,3,2,0,1,0,0,280,"Craig","None,None,None",6,640.71428571428567,"Richard Whitsell",640.71428571428567]
["Steve Andrews","Courbet","Allied",4,4.5,29,9,24,1,1,0,1,1990,"Mark L","None,None,None",8,854.28571428571422,"Steve Andrews",654.28571428571422]
["Carl Camurati","Nelson","Allied",6,6,74,9,15,0,0,1000,0,1370,"Andy","Withdraw,None,None",5,-466.07142857142856,"Carl Camurati",-466.07142857142856]
["Kas Gaigalas","Washington","Allied",6,6,64,20,26,0,1,0,0,1820,"Craig","None,None,None",10,1067.8571428571429,"Kas Gaigalas",1067.8571428571429]
["William Tustin","Jean Bart","Allied",6,6.5,53,8,92,1,1,0,1,4450,"Brian Lamb","None,None,None",10,1067.8571428571429,"William Tustin",867.85714285714289]
["Marty Hayes","South Carolina","Allied",4,4,27,2,5,0,1,0,0,460,"Craig","None,None,None",8,854.28571428571422,"Marty Hayes",854.28571428571422]
["Jeff Lide","Rodney","Allied",6,6,78,13,36,1,1,0,1,3120,"Tyler","None,None,None",10,1067.8571428571429,"Jeff Lide",867.85714285714289]
["Robert Arena","Arizona","Allied",5,5.5,31,0,8,0,1,200,0,550,"Craig","Ram below ,None,None",9,761.07142857142867,"Robert Arena",761.07142857142867]

{"sheet":"Composite","index":19,"n_rows":12,"n_cols":5,"rows_kept":12,"cut":false,"hidden":false,"merged":[]}
["Composite",null,null,"Differential"]
["Mon AM",21710,10950,{"$f":"B2-C2","v":10760},"Axis"]
["Mon PM",17620,11100,{"$f":"B3-C3","v":6520},"Axis"]
["Tues AM",20620,18770,1850,"Axis"]
["Tues Camp",4850,14550,-9700,"Alies"]
["Wed Night",5030,2800,2230,"Axis"]
["Thurs AM",19390,22720,-3330,"Alies"]
["Thurs Camp",5750,15700,-9950,"Alies"]
["Fri",20800,14840,5960,"Axis"]
[null,{"$f":"SUM(B2:B9)","v":115770},{"$f":"SUM(C2:C9)","v":111430},4340,"Axis"]
[]
[null,null,{"$f":"B10-C10","v":4340},null,"Axis"]